[Event "DFMMLV 2024"]
[Site "Braunfels"]
[Date "2024.06.02"]
[Round "5.43"]
[White "Sural, Ceren"]
[Black "Ramm, Madlen"]
[Result "1/2-1/2"]
[ECO "D04"]
[WhiteElo "1793"]
[BlackElo "1830"]
[Annotator "NA RC"]
[PlyCount "92"]
[EventDate "2024.05.30"]
[EventType "team-tourn"]
[EventCountry "GER"]
[SourceTitle "playchess.com"]
[Source "ChessBase"]
[SourceQuality "1"]
[TimeControl "40/5400+30:1800+30"]

1. d4 {[%emt 0:00:03]} Nf6 {[%emt 0:00:06]} 2. e3 {[%emt 0:00:33]} d5 {[%emt 0:01:21]} 3. Nf3 {[%emt 0:00:23]} Bg4 {[%emt 0:02:14]} 4. Be2 {[%emt 0:01:18]} e6 {[%emt 0:00:24]} 5. a3 {[%emt 0:02:41]} Be7 {[%emt 0:00:42]} 6. Nbd2 {[%emt 0:01:20]} O-O {[%emt 0:00:25]} 7. b3 {[%emt 0:00:58]} c5 {[%emt 0:02:50]} 8. Bb2 {[%emt 0:02:58]} Nc6 {[%emt 0:01:45]} 9. O-O {[%emt 0:02:23]} Rc8 {[%emt 0:01:27]} 10. Ne5 {[%emt 0:10:21]} Bxe2 {[%emt 0:02:37]} 11. Qxe2 {[%emt 0:00:25]} cxd4 {[%emt 0:02:38]} 12. exd4 {[%emt 0:01:49]} Qb6 {[%emt 0:06:53]} 13. Qd3 {[%emt 0:07:32]} Qc7 {[%emt 0:08:25]} 14. Rac1 {[%emt 0:04:58]} Rfd8 {[%emt 0:04:31]} 15. f4 {[%emt 0:03:27]} Qb6 {[%emt 0:01:16]} 16. Kh1 {[%emt 0:11:35]} Ne4 {[%emt 0:05:28]} 17. Rce1 {[%emt 0:18:45]} Nxd2 {[%emt 0:09:21]} 18. Qxd2 {[%emt 0:00:19]} Qa5 {[%emt 0:04:26]} 19. b4 {[%emt 0:06:53]} Qc7 {[%emt 0:03:22]} 20. Re2 {[%emt 0:02:52]} Bd6 {[%emt 0:04:24]} 21. Rf3 {[%emt 0:07:18]} Ne7 {[%emt 0:00:33]} 22. Rh3 {[%emt 0:04:46]} Ng6 {[%emt 0:15:05]} 23. Nxg6 {[%emt 0:02:57]} hxg6 {[%emt 0:00:02]} 24. Rf2 {[%emt 0:01:18]} f6 {[%emt 0:00:47]} 25. Qd3 {[%emt 0:01:22]} Kf7 {[%emt 0:01:25]} 26. Qe3 {[%emt 0:03:03]} Rh8 {[%emt 0:00:24]} 27. Bc1 {[%emt 0:00:24]} Rxh3 {[%emt 0:02:45]} 28. gxh3 {[%emt 0:00:46]} Qc3 {[%emt 0:00:55]} 29. Kg2 {[%emt 0:00:37]} Qxe3 {[%emt 0:00:11]} 30. Bxe3 {[%emt 0:00:01]} Rc3 {[%emt 0:03:15]} 31. Bc1 {[%emt 0:00:05]} f5 {[%emt 0:04:07]} 32. Re2 {[%emt 0:00:53]} Be7 {[%emt 0:02:09]} 33. Bb2 {[%emt 0:00:47]} Rc4 {[%emt 0:00:34]} 34. c3 {[%emt 0:00:53]} g5 {[%emt 0:01:43]} 35. fxg5 {[%emt 0:00:27]} Bxg5 {[%emt 0:00:01]} 36. Kf3 {[%emt 0:00:35]} Rc8 {[%emt 0:02:03]} 37. Rg2 {[%emt 0:00:31]} Bf6 {[%emt 0:02:16]} 38. Ke3 {[%emt 0:00:27]} Rh8 {[%emt 0:00:20]} 39. Rg3 {[%emt 0:00:14]} Rh4 {[%emt 0:02:18]} 40. Kd3 {[%emt 0:00:34]} g5 {[%emt 0:03:04]} 41. Bc1 {[%emt 0:30:47]} f4 {[%emt 0:07:38]} 42. Rf3 {[%emt 0:00:00]} e5 {[%emt 0:02:47]} 43. dxe5 {[%emt 0:00:00]} Bxe5 {[%emt 0:00:01]} 44. Bd2 {[%emt 0:00:00]} Ke6 {[%emt 0:02:53]} 45. Be1 {[%emt 0:00:00]} Rh7 {[%emt 0:01:33]} 46. Bf2 {[%emt 0:00:00]} b6 {[%emt 0:03:51]} 1/2-1/2

[Event "DFMMLV 2024"]
[Site "Braunfels"]
[Date "2024.06.02"]
[Round "5.44"]
[White "Weinmann, Helene"]
[Black "Tobianski, Karina"]
[Result "1/2-1/2"]
[ECO "D02"]
[WhiteElo "1655"]
[BlackElo "1816"]
[Annotator "NA RC"]
[PlyCount "76"]
[EventDate "2024.05.30"]
[EventType "team-tourn"]
[EventCountry "GER"]
[SourceTitle "playchess.com"]
[Source "ChessBase"]
[SourceQuality "1"]
[TimeControl "40/5400+30:1800+30"]

1. d4 {[%emt 0:00:06]} d5 {[%emt 0:00:08]} 2. Nf3 {[%emt 0:00:15]} Nf6 {[%emt 0:00:11]} 3. Bf4 {[%emt 0:00:17]} Bf5 {[%emt 0:00:19]} 4. e3 {[%emt 0:00:31]} e6 {[%emt 0:00:53]} 5. Bd3 {[%emt 0:02:38]} Bg6 {[%emt 0:01:11]} 6. O-O {[%emt 0:00:37]} Be7 {[%emt 0:01:19]} 7. Ne5 {[%emt 0:00:38]} Nbd7 {[%emt 0:02:24]} 8. Nxg6 {[%emt 0:00:28]} hxg6 {[%emt 0:00:15]} 9. Nd2 {[%emt 0:00:54]} Nh5 {[%emt 0:13:59]} 10. Be5 {[%emt 1:29:06]} O-O {[%emt 0:03:30]} 11. h3 {[%emt 0:00:00]} c5 {[%emt 0:01:27]} 12. Be2 {[%emt 0:00:00]} Nhf6 {[%emt 0:01:47]} 13. c3 {[%emt 0:00:00]} a6 {[%emt 0:09:58]} 14. Bh2 {[%emt 0:00:00]} b5 {[%emt 0:01:37]} 15. Bf3 {[%emt 0:00:00]} Qb6 {[%emt 0:01:36]} 16. e4 {[%emt 0:00:00]} cxd4 {[%emt 0:02:10]} 17. cxd4 {[%emt 0:00:00]} Qxd4 {[%emt 0:01:38]} 18. exd5 {[%emt 0:04:00]} Nxd5 {[%emt 0:01:42]} 19. Rb1 {[%emt 0:00:00]} N7f6 {[%emt 0:05:26]} 20. Nb3 {[%emt 0:00:00]} Qxd1 {[%emt 0:07:42]} 21. Rfxd1 {[%emt 0:00:00]} Rac8 {[%emt 0:00:39]} 22. Rbc1 {[%emt 0:00:00]} Rfd8 {[%emt 0:05:52]} 23. Be5 {[%emt 0:00:00]} Nd7 {[%emt 0:07:47]} 24. Bd4 {[%emt 0:00:00]} Bf6 {[%emt 0:05:59]} 25. Bxd5 {[%emt 0:00:00]} exd5 {[%emt 0:00:15]} 26. Bxf6 {[%emt 0:00:00]} Nxf6 {[%emt 0:00:08]} 27. Nc5 {[%emt 0:00:00]} Rc6 {[%emt 0:02:34]} 28. b4 {[%emt 0:00:00]} Re8 {[%emt 0:06:05]} 29. Kf1 {[%emt 0:00:00]} g5 {[%emt 0:04:50]} 30. f3 {[%emt 0:00:00]} Kh7 {[%emt 0:01:11]} 31. Kf2 {[%emt 0:00:00]} Kg6 {[%emt 0:00:15]} 32. Re1 {[%emt 0:00:00]} Rxe1 {[%emt 0:03:50]} 33. Rxe1 {[%emt 0:00:00]} d4 {[%emt 0:00:24]} 34. Rd1 {[%emt 0:00:00]} Rd6 {[%emt 0:01:06]} 35. Nb3 {[%emt 0:00:00]} d3 {[%emt 0:03:28]} 36. Nc5 {[%emt 0:00:00]} Rd4 {[%emt 0:01:56]} 37. a3 {[%emt 0:00:00]} Nd5 {[%emt 0:00:27]} 38. Rxd3 {[%emt 0:00:00]} Rxd3 {[%emt 0:01:26]} 1/2-1/2

[Event "DFMMLV 2024"]
[Site "Braunfels"]
[Date "2024.06.02"]
[Round "5.52"]
[White "Storkebaum, Ulrike"]
[Black "Ulrich, Helena Irene"]
[Result "1-0"]
[ECO "B33"]
[WhiteElo "1811"]
[BlackElo "1819"]
[Annotator "NA RC"]
[PlyCount "145"]
[EventDate "2024.05.30"]
[EventType "team-tourn"]
[EventCountry "GER"]
[SourceTitle "playchess.com"]
[Source "ChessBase"]
[SourceQuality "1"]
[TimeControl "40/5400+30:1800+30"]

1. e4 {[%emt 0:00:02]} c5 {[%emt 0:00:04]} 2. Nf3 {[%emt 0:00:04]} Nc6 {[%emt 0:00:03]} 3. d4 {[%emt 0:00:03]} cxd4 {[%emt 0:00:04]} 4. Nxd4 {[%emt 0:00:04]} Nf6 {[%emt 0:00:04]} 5. Nc3 {[%emt 0:00:06]} e5 {[%emt 0:00:04]} 6. Ndb5 {[%emt 0:00:12]} d6 {[%emt 0:00:06]} 7. Bg5 {[%emt 0:00:19]} a6 {[%emt 0:00:03]} 8. Na3 {[%emt 0:00:24]} b5 {[%emt 0:00:05]} 9. Nd5 {[%emt 0:00:06]} Be7 {[%emt 0:00:04]} 10. Bxf6 {[%emt 0:01:00]} Bxf6 {[%emt 0:00:03]} 11. c3 {[%emt 0:00:06]} Rb8 {[%emt 0:00:07]} 12. Nc2 {[%emt 0:00:07]} Bg5 {[%emt 0:00:06]} 13. Be2 {[%emt 0:00:40]} O-O {[%emt 0:00:23]} 14. O-O {[%emt 0:00:05]} Be6 {[%emt 0:01:38]} 15. Nce3 {[%emt 0:01:45]} Bxe3 {[%emt 0:04:24]} 16. Nxe3 {[%emt 0:00:25]} Ne7 {[%emt 0:01:09]} 17. c4 {[%emt 0:05:25]} b4 {[%emt 0:06:55]} 18. b3 {[%emt 0:00:39]} Qb6 {[%emt 0:05:53]} 19. Nd5 {[%emt 0:04:51]} Nxd5 {[%emt 0:03:34]} 20. cxd5 {[%emt 0:03:22]} Bd7 {[%emt 0:00:25]} 21. Kh1 {[%emt 0:03:14]} f5 {[%emt 0:02:49]} 22. exf5 {[%emt 0:02:21]} Bxf5 {[%emt 0:01:02]} 23. Rc1 {[%emt 0:02:11]} Rbc8 {[%emt 0:03:55]} 24. Rxc8 {[%emt 0:07:13]} Rxc8 {[%emt 0:00:13]} 25. Bc4 {[%emt 0:00:02]} a5 {[%emt 0:04:49]} 26. Qd2 {[%emt 0:03:58]} Rc5 {[%emt 0:08:37]} 27. Re1 {[%emt 0:03:27]} Qd8 {[%emt 0:13:31]} 28. f4 {[%emt 0:02:05]} e4 {[%emt 0:02:58]} 29. h3 {[%emt 0:09:23]} Qh4 {[%emt 0:06:17]} 30. Kh2 {[%emt 0:00:34]} Rc7 {[%emt 0:02:52]} 31. Qe3 {[%emt 0:08:43]} Rc5 {[%emt 0:04:33]} 32. Re2 {[%emt 0:05:35]} h5 {[%emt 0:05:38]} 33. Kg1 {[%emt 0:05:20]} Qf6 {[%emt 0:02:35]} 34. Re1 {[%emt 0:07:08]} Qb2 {[%emt 0:02:24]} 35. Qf2 {[%emt 0:01:15]} Qxf2+ {[%emt 0:01:05]} 36. Kxf2 {[%emt 0:00:10]} Kf7 {[%emt 0:02:22]} 37. Ke3 {[%emt 0:01:31]} h4 {[%emt 0:01:02]} 38. Kd4 {[%emt 0:01:42]} Rc7 {[%emt 0:02:56]} 39. Ra1 {[%emt 0:01:53]} Re7 {[%emt 0:02:19]} 40. Ke3 {[%emt 0:00:53]} Rc7 {[%emt 0:00:48]} 41. Kd4 {[%emt 0:31:31]} Re7 {[%emt 0:30:06]} 42. Bb5 {[%emt 0:01:09]} Rc7 {[%emt 0:01:59]} 43. Bc6 {[%emt 0:00:50]} Re7 {[%emt 0:00:35]} 44. Ke3 {[%emt 0:00:20]} Bd7 {[%emt 0:03:58]} 45. Bxd7 {[%emt 0:01:11]} Rxd7 {[%emt 0:00:04]} 46. Rc1 {[%emt 0:00:05]} Kf6 {[%emt 0:02:36]} 47. Kxe4 {[%emt 0:00:27]} Re7+ {[%emt 0:00:12]} 48. Kf3 {[%emt 0:01:12]} g5 {[%emt 0:02:56]} 49. fxg5+ {[%emt 0:03:19]} Kxg5 {[%emt 0:00:09]} 50. Rc6 {[%emt 0:00:07]} Rf7+ {[%emt 0:00:42]} 51. Ke3 {[%emt 0:00:19]} Re7+ {[%emt 0:00:05]} 52. Kd3 {[%emt 0:00:56]} Rd7 {[%emt 0:02:11]} 53. Ra6 {[%emt 0:00:29]} Kf5 {[%emt 0:00:04]} 54. Rxa5 {[%emt 0:01:26]} Rg7 {[%emt 0:00:17]} 55. Ra6 {[%emt 0:02:18]} Ke5 {[%emt 0:00:09]} 56. Kc4 {[%emt 0:00:30]} Rxg2 {[%emt 0:00:09]} 57. Ra8 {[%emt 0:00:57]} Rh2 {[%emt 0:01:17]} 58. Re8+ {[%emt 0:01:08]} Kf4 {[%emt 0:00:56]} 59. Kxb4 {[%emt 0:02:21]} Rxh3 {[%emt 0:00:35]} 60. Re6 {[%emt 0:01:15]} Rd3 {[%emt 0:00:52]} 61. Rxd6 {[%emt 0:00:53]} h3 {[%emt 0:00:00]} 62. Rh6 {[%emt 0:00:00]} Kg3 {[%emt 0:00:00]} 63. Kc4 {[%emt 0:00:00]} Rd2 {[%emt 0:00:00]} 64. a4 {[%emt 0:00:00]} h2 {[%emt 0:00:00]} 65. a5 {[%emt 0:00:00]} Kg2 {[%emt 0:00:00]} 66. b4 {[%emt 0:00:00]} h1=Q {[%emt 0:00:00]} 67. Rxh1 {[%emt 0:00:00]} Kxh1 {[%emt 0:00:00]} 68. a6 {[%emt 0:00:00]} Ra2 {[%emt 0:00:00]} 69. b5 {[%emt 0:00:00]} Rc2+ {[%emt 0:00:00]} 70. Kd4 {[%emt 0:00:00]} Rd2+ {[%emt 0:00:00]} 71. Kc5 {[%emt 0:00:00]} Rc2+ {[%emt 0:00:00]} 72. Kb6 {[%emt 0:00:00]} Rd2 {[%emt 0:00:00]} 73. a7 {[%emt 0:00:00]} 1-0

[Event "DFMMLV 2024"]
[Site "Braunfels"]
[Date "2024.06.02"]
[Round "5.54"]
[White "Lerch, Cornelia"]
[Black "Loos, Tilda"]
[Result "1/2-1/2"]
[ECO "B22"]
[WhiteElo "1847"]
[BlackElo "1667"]
[Annotator "NA RC"]
[PlyCount "47"]
[EventDate "2024.05.30"]
[EventType "team-tourn"]
[EventCountry "GER"]
[SourceTitle "playchess.com"]
[Source "ChessBase"]
[SourceQuality "1"]
[TimeControl "40/5400+30:1800+30"]

1. e4 {[%emt 0:00:02]} c5 {[%emt 0:00:03]} 2. c3 {[%emt 0:00:06]} Nf6 {[%emt 0:00:05]} 3. e5 {[%emt 0:00:11]} Nd5 {[%emt 0:00:06]} 4. d4 {[%emt 0:00:23]} cxd4 {[%emt 0:00:18]} 5. cxd4 {[%emt 0:00:08]} d6 {[%emt 0:00:36]} 6. Nf3 {[%emt 0:01:32]} Nc6 {[%emt 0:00:43]} 7. Bc4 {[%emt 0:05:53]} dxe5 {[%emt 0:02:49]} 8. dxe5 {[%emt 0:00:18]} e6 {[%emt 0:01:29]} 9. O-O {[%emt 0:00:26]} Be7 {[%emt 0:01:18]} 10. a3 {[%emt 0:03:16]} O-O {[%emt 0:00:38]} 11. Qe2 {[%emt 0:03:11]} Nb6 {[%emt 0:01:43]} 12. Ba2 {[%emt 0:00:24]} Nd4 {[%emt 0:03:36]} 13. Nxd4 {[%emt 0:00:58]} Qxd4 {[%emt 0:00:04]} 14. Rd1 {[%emt 0:01:22]} Qh4 {[%emt 0:03:29]} 15. Nc3 {[%emt 0:02:37]} Bd7 {[%emt 0:02:05]} 16. Be3 {[%emt 0:02:46]} Bg5 {[%emt 0:03:24]} 17. Rd4 {[%emt 0:15:47]} Qh6 {[%emt 0:00:29]} 18. Bxg5 {[%emt 0:01:48]} Qxg5 {[%emt 0:00:03]} 19. Rg4 {[%emt 0:00:53]} Qe7 {[%emt 0:01:06]} 20. Ne4 {[%emt 0:08:28]} Kh8 {[%emt 0:01:33]} 21. Rg3 {[%emt 0:01:28]} Bc6 {[%emt 0:04:47]} 22. Ng5 {[%emt 0:04:53]} h6 {[%emt 0:04:19]} 23. Qh5 {[%emt 0:02:08]} Nd5 {[%emt 0:02:39]} 24. Nh3 {[%emt 0:06:36]} 1/2-1/2

[Event "DFMMLV 2024"]
[Site "Braunfels"]
[Date "2024.06.02"]
[Round "5.55"]
[White "Kohl, Natalie"]
[Black "Kaulfuss, Christa"]
[Result "1-0"]
[ECO "B00"]
[WhiteElo "1683"]
[BlackElo "1816"]
[Annotator "NA RC"]
[PlyCount "65"]
[EventDate "2024.05.30"]
[EventType "team-tourn"]
[EventCountry "GER"]
[SourceTitle "playchess.com"]
[Source "ChessBase"]
[SourceQuality "1"]
[TimeControl "40/5400+30:1800+30"]

1. e4 {[%emt 0:00:14]} Nc6 {[%emt 0:00:11]} 2. Nf3 {[%emt 0:01:01]} d6 {[%emt 0:00:14]} 3. h3 {[%emt 0:00:40]} Nf6 {[%emt 0:00:24]} 4. Nc3 {[%emt 0:00:39]} g6 {[%emt 0:00:29]} 5. d4 {[%emt 0:01:15]} e6 {[%emt 0:00:13]} 6. Bg5 {[%emt 0:01:09]} h6 {[%emt 0:01:28]} 7. Be3 {[%emt 0:10:57]} Bg7 {[%emt 0:00:43]} 8. Qd2 {[%emt 0:01:20]} a6 {[%emt 0:00:20]} 9. g4 {[%emt 0:05:20]} b5 {[%emt 0:02:53]} 10. a3 {[%emt 0:17:53]} Bb7 {[%emt 0:00:52]} 11. g5 {[%emt 0:01:52]} hxg5 {[%emt 0:01:07]} 12. Bxg5 {[%emt 0:00:20]} Ne7 {[%emt 0:00:35]} 13. Bxf6 {[%emt 0:09:51]} Bxf6 {[%emt 0:00:14]} 14. O-O-O {[%emt 0:00:08]} Bg7 {[%emt 0:00:30]} 15. Kb1 {[%emt 0:00:08]} Bh6 {[%emt 0:01:48]} 16. Qe2 {[%emt 0:02:40]} Qd7 {[%emt 0:02:31]} 17. h4 {[%emt 0:00:51]} O-O-O {[%emt 0:01:07]} 18. Bh3 {[%emt 0:00:10]} Kb8 {[%emt 0:00:45]} 19. Ng5 {[%emt 0:05:58]} Qe8 {[%emt 0:07:31]} 20. d5 {[%emt 0:09:53]} exd5 {[%emt 0:06:52]} 21. exd5 {[%emt 0:00:39]} Bxg5 {[%emt 0:04:52]} 22. hxg5 {[%emt 0:00:10]} Bc8 {[%emt 0:03:02]} 23. Bxc8 {[%emt 0:01:03]} Rxh1 {[%emt 0:00:15]} 24. Rxh1 {[%emt 0:00:14]} Kxc8 {[%emt 0:01:28]} 25. Re1 {[%emt 0:01:00]} Rd7 {[%emt 0:01:51]} 26. Ne4 {[%emt 0:04:20]} Nxd5 {[%emt 0:01:04]} 27. Nxd6+ {[%emt 0:00:22]} cxd6 {[%emt 0:01:23]} 28. Qxe8+ {[%emt 0:00:10]} Kb7 {[%emt 0:00:08]} 29. Qa8+ {[%emt 0:00:30]} Kb6 {[%emt 0:00:30]} 30. Qe8 {[%emt 0:02:07]} Kc6 {[%emt 0:00:30]} 31. Qa8+ {[%emt 0:00:30]} Kc5 {[%emt 0:00:51]} 32. Qxa6 {[%emt 0:04:34]} Nb6 {[%emt 0:01:58]} 33. Re3 {[%emt 0:01:36]} 1-0